[Event "IX Iberoamericano Championship 2023"]
[Site "Panama City"]
[Date "2023.11.27"]
[Round "2.3"]
[White "Baules Rodriguez, Jorge Luis"]
[Black "Mareco, Sandro"]
[Result "0-1"]
[ECO "E36"]
[WhiteElo "2283"]
[BlackElo "2606"]
[Annotator "TA"]
[PlyCount "156"]
[EventDate "2023.11.27"]
[EventType "swiss"]
[EventCountry "PAN"]
[SourceTitle "playchess.com"]
[Source "ChessBase"]
[SourceQuality "1"]
[TimeControl "5400+30"]

{[%evp 13,156,14,20,16,20,5,0,0,0,-12,-8,-29,-23,-29,-16,-14,-12,-32,0,0,0,0,0,0,12,19,23,-6,-6,-5,-15,-16,-16,-22,0,-19,-8,-5,-3,-44,-49,-61,-67,-105,-111,-121,-108,-116,-100,-95,-97,-151,-102,-104,-110,-114,-92,-196,-189,-279,-279,-269,-164,-247,-235,-373,-326,-366,0,-356,-349,-330,-333,-292,-293,-260,0,-245,-245,-245,-245,-245,-245,-244,-244,-328,-278,-336,-235,-233,-210,-209,-209,-230,-229,-227,-220,-293,-231,-268,-268,-310,-310,-337,-246,-512,-512,-491,-433,-503,-426,-480,-383,-280,-280,-658,-280,-5791,-5816,-6012,-6004,-5840,-5743,-4822,-5343,-4682,-2861,-2789,-3954,-2049,-1984,-1436,-1351,-5724,-4902,-1748,-1324,-6079,-1454,-10461,-11834,-6687,-6606,-6621,-5902]} 1. d4 {[%emt 0:00:45]} Nf6 {[%emt 0:01:47]} 2. c4 {[%emt 0:00:09]} e6 {[%emt 0:00:05]} 3. Nc3 {[%emt 0:00:28]} Bb4 {[%emt 0:00:13]} 4. Qc2 {[%emt 0:00:25]} d5 {[%emt 0:00:10]} 5. a3 {[%emt 0:00:14]} Bxc3+ {[%emt 0:01:27]} 6. Qxc3 {[%emt 0:00:04]} Nbd7 {[%emt 0:00:17] 6...0-0 is the modern continuation.} 7. Nf3 {[%emt 0:08:04]} O-O {[%emt 0:01:22]} 8. Bg5 {[%emt 0:00:43] E36: Nimzo-Indian: Classical: 4...d5 5 a3.} h6 {[%emt 0:05:02]} 9. Bxf6 {[%emt 0:06:30]} Nxf6 {[%emt 0:00:44]} 10. e3 {[%emt 0:01:50] The position is equal.} b6 {[%emt 0:02:35] [#]} 11. Bd3 $146 {[%emt 0:03:08]} ({Predecessor:} 11. Be2 Ba6 12. cxd5 Bxe2 13. Kxe2 Qxd5 14. Rac1 Rac8 15. Qc6 Rfd8 16. Qxd5 Rxd5 17. Rc2 {½-½ Santos Latasa,J (2581)-Eljanov,P (2680) Gibraltar Masters 17th 2019 (9)}) 11... dxc4 {[%emt 0:02:01]} 12. Qxc4 {[%emt 0:01:57]} Bb7 {[%emt 0:00:05][%cal Oc7c5]} 13. Be2 {[%emt 0:04:47]} Rc8 {[%emt 0:04:34]} 14. O-O {[%emt 0:02:56]} c5 {[%emt 0:00:12]} 15. Rfd1 {[%emt 0:02:27]} Qe7 {[%emt 0:02:44]} 16. Rac1 {[%emt 0:09:21]} Nd5 {[%emt 0:10:56]} 17. Qb3 {[%emt 0:14:32]} Rc7 {[%emt 0:02:44]} 18. dxc5 {[%emt 0:07:12]} bxc5 {[%emt 0:00:18][%cal Bb6c5,Bc5c4][%mdl 32]} 19. Nd2 {[%emt 0:05:17]} Nb6 {[%emt 0:01:59]} 20. Bf3 {[%emt 0:01:55]} Bxf3 {[%emt 0:04:05]} 21. Nxf3 {[%emt 0:00:08]} c4 {[%emt 0:00:03]} 22. Qb5 {[%emt 0:02:20]} Rfc8 {[%emt 0:00:39][%cal Bf8c8,Bc8b8,Bb8b2][%mdl 32]} 23. Nd4 {[%emt 0:07:51][%cal Bf3d4,Bd4e2,Be2f4][%mdl 32]} Nd5 {[%emt 0:18:36]} (23... Rc5 $5 {[%cal Rc5b5]} 24. Qa6 Rd8 $11) 24. Ne2 {[%emt 0:09:31]} Rc5 {[%emt 0:11:23]} (24... Rb7 $5 25. Qa6 $8 Rcb8 $15) 25. Qa4 {[%emt 0:03:09]} Rb8 {[%emt 0:01:08]} 26. Rxc4 {[%emt 0:03:18]} Rxb2 {[%emt 0:01:17]} 27. Rxc5 {[%emt 0:03:06]} Qxc5 {[%emt 0:00:04]} 28. Nf4 {[%emt 0:01:14]} Nc3 $36 {[%emt 0:02:42][%mdl 2048] Black has strong initiative.} 29. Qe8+ {[%emt 0:00:06]} Qf8 {[%emt 0:00:06] Black is more active.} 30. Qxf8+ {[%emt 0:00:57]} Kxf8 $17 {[%emt 0:00:04][%mdl 4096] Endgame KRN-KRN} 31. Ra1 {[%emt 0:00:29]} a5 {[%emt 0:05:29]} 32. h3 {[%emt 0:00:08]} (32. Nd3 $142 Rd2 33. Nc5) 32... a4 {[%emt 0:01:30]} ({Black should try} 32... Rb1+ 33. Rxb1 Nxb1) 33. Nd3 {[%emt 0:00:02]} Rb3 {[%emt 0:00:59]} 34. Kf1 {[%emt 0:00:19]} Ke7 {[%emt 0:00:17]} 35. Nc1 {[%emt 0:01:50]} (35. Ke1 $17) 35... Kd6 $1 $19 {[%emt 0:04:15]} 36. Ke1 {[%emt 0:00:01]} (36. Nxb3 $2 axb3 37. Re1 b2 $19) (36. Nd3 {was necessary.}) 36... Rb2 $1 {[%emt 0:00:20]} 37. Nd3 {[%emt 0:00:25]} Re2+ {[%emt 0:00:23]} 38. Kf1 {[%emt 0:00:01]} Rd2 {[%emt 0:00:14]} 39. Nb4 {[%emt 0:00:25] [#]} (39. Ne1 {might work better.}) 39... Kc5 $1 {[%emt 0:04:35]} 40. Ke1 {[%emt 0:00:03]} Re2+ {[%emt 0:00:22]} 41. Kf1 {[%emt 0:00:01] [#]} Kc4 $1 {[%emt 0:01:37]} 42. Rc1 {[%emt 0:02:47][%cal Oc1c3]} Rb2 {[%emt 0:00:24]} 43. Ke1 {[%emt 0:00:29]} Kb3 {[%emt 0:01:48]} 44. Nd3 {[%emt 0:00:19] Nc5+ would be deadly.} Re2+ {[%emt 0:01:59]} 45. Kf1 {[%emt 0:00:02][%cal Oc1c3]} Rd2 {[%emt 0:00:38]} 46. Nc5+ {[%emt 0:01:06]} Kb2 $1 {[%emt 0:00:12]} (46... Kxa3 47. Rxc3+ Kb4 48. Nxa4 $18) 47. Nxa4+ {[%emt 0:00:35]} Kxc1 {[%emt 0:05:40][%cal Rd2d1]} (47... Nxa4 $2 {perishes.} 48. Rc7) 48. Nxc3 {[%emt 0:00:01] KR-KN} Kc2 {[%emt 0:00:25]} 49. Ne4 {[%emt 0:00:21]} Rd5 {[%emt 0:00:21] ...Kd3 is the strong threat.} 50. Ke2 {[%emt 0:00:25]} Kb3 {[%emt 0:01:13]} 51. a4 {[%emt 0:01:08]} Kb4 {[%emt 0:00:11]} ({Inferior is} 51... Kxa4 52. Nc3+ Kb4 53. Nxd5+ exd5 54. Kd3 $11) 52. g4 {[%emt 0:00:36]} Rd8 {[%emt 0:00:37]} ({Weaker is} 52... Kxa4 53. Nc3+ Kb4 54. Nxd5+ exd5 55. Kd3 $11) 53. Ng3 {[%emt 0:00:32]} Kxa4 {[%emt 0:00:15]} 54. Nh5 {[%emt 0:00:01]} g6 {[%emt 0:00:41][%cal Bg7g6,Bg6g5][%mdl 32]} 55. Nf4 {[%emt 0:00:24]} g5 {[%emt 0:01:51]} 56. Nd3 {[%emt 0:00:08]} Kb5 {[%emt 0:00:08] And now ...f6 would win.} 57. Ne5 {[%emt 0:00:08]} f6 {[%emt 0:00:41][%cal Bf7f6,Bf6f5][%mdl 32]} 58. Nf3 {[%emt 0:01:45]} Kc6 {[%emt 0:00:11]} 59. Nd2 $2 {[%emt 0:00:22]} (59. h4) 59... Kd5 {[%emt 0:00:40]} 60. Kf3 {[%emt 0:00:06]} Rc8 {[%emt 0:00:11]} 61. Ne4 {[%emt 0:00:50]} Ke5 {[%emt 0:00:08]} 62. Ng3 {[%emt 0:00:12]} f5 {[%emt 0:01:06]} 63. Nh5 {[%emt 0:00:05]} Rc3 {[%emt 0:00:25] aiming for ...f4.} 64. Ng3 $2 {[%emt 0:00:10]} (64. Kg2) 64... Ra3 {[%emt 0:00:47]} (64... f4 $142 65. Ne4 Rc7) 65. Ne2 $2 {[%emt 0:00:17]} (65. Kg2) 65... f4 {[%emt 0:01:03] Black is clearly winning.} 66. Nd4 {[%emt 0:00:13]} fxe3 {[%emt 0:00:17]} 67. fxe3 {[%emt 0:00:01]} Ra8 {[%emt 0:00:58]} 68. Nc6+ {[%emt 0:00:19]} Kd6 {[%emt 0:00:09]} 69. Nd4 {[%emt 0:00:05]} Rf8+ {[%emt 0:00:04]} 70. Ke2 {[%emt 0:00:42]} Kd5 {[%emt 0:00:23]} 71. Nb5 {[%emt 0:01:35]} Ke5 {[%emt 0:00:46] White must now prevent ...Rb8.} 72. Nd4 {[%emt 0:00:22]} Rf7 {[%emt 0:00:15]} 73. Nc6+ {[%emt 0:00:43]} Ke4 {[%emt 0:00:48] Threatens to win with ...Rf3.} 74. Nd4 {[%emt 0:00:19] Against Rf3} Ra7 {[%emt 0:00:36]} 75. Kf2 {[%emt 0:01:26]} Ra2+ {[%emt 0:01:00]} 76. Kg3 {[%emt 0:00:04]} e5 {[%emt 0:00:25]} 77. Nf5 {[%emt 0:00:11]} Re2 {[%emt 0:00:09] Strongly threatening ...Kd3.} 78. Nxh6 {[%emt 0:00:15]} Rxe3+ {[%emt 0:00:06] Weighted Error Value: White=0.23 (precise) /Black=0.11 (very precise)} 0-1

[Event "IX Iberoamericano Championship 2023"]
[Site "Panama City"]
[Date "2023.11.27"]
[Round "2.4"]
[White "Hernandez Guerrero, Gilberto"]
[Black "Solares Orozco, Kebert"]
[Result "1-0"]
[ECO "B11"]
[WhiteElo "2527"]
[BlackElo "2312"]
[Annotator "RC"]
[PlyCount "71"]
[EventDate "2023.11.27"]
[EventType "swiss"]
[EventCountry "PAN"]
[SourceTitle "playchess.com"]
[Source "ChessBase"]
[SourceQuality "1"]
[TimeControl "5400+30"]

1. e4 {[%emt 0:00:09]} c6 {[%emt 0:03:29]} 2. Nc3 {[%emt 0:01:21]} d5 {[%emt 0:00:08]} 3. Nf3 {[%emt 0:00:07]} Nf6 {[%emt 0:00:05]} 4. e5 {[%emt 0:05:14]} Ne4 {[%emt 0:00:11]} 5. Qe2 {[%emt 0:01:33]} Nxc3 {[%emt 0:03:25]} 6. dxc3 {[%emt 0:01:35]} Qb6 {[%emt 0:06:45]} 7. h3 {[%emt 0:05:19]} e6 {[%emt 0:01:05]} 8. Qd2 {[%emt 0:05:31]} Be7 {[%emt 0:05:29]} 9. Bd3 {[%emt 0:03:50]} c5 {[%emt 0:03:26]} 10. c4 {[%emt 0:01:20]} dxc4 {[%emt 0:03:31]} 11. Bxc4 {[%emt 0:00:52]} Bd7 {[%emt 0:01:46]} 12. O-O {[%emt 0:07:50]} Bb5 {[%emt 0:06:39]} 13. Bxb5+ {[%emt 0:06:12]} Qxb5 {[%emt 0:00:10]} 14. a4 {[%emt 0:02:43]} Qa6 {[%emt 0:17:20]} 15. Qf4 {[%emt 0:02:19]} h6 {[%emt 0:05:39]} 16. Qg4 {[%emt 0:03:47]} g5 {[%emt 0:02:14]} 17. Be3 {[%emt 0:07:59]} Nd7 {[%emt 0:10:09]} 18. Rfd1 {[%emt 0:05:30]} O-O-O {[%emt 0:10:48]} 19. Qh5 {[%emt 0:04:43]} Rdf8 {[%emt 0:00:07]} 20. Rd2 {[%emt 0:04:41]} Nb6 {[%emt 0:04:50]} 21. b3 {[%emt 0:00:39]} Nd5 {[%emt 0:01:10]} 22. Re1 {[%emt 0:00:38]} c4 {[%emt 0:04:36]} 23. bxc4 {[%emt 0:05:58]} Qxc4 {[%emt 0:00:03]} 24. Rd4 {[%emt 0:00:19]} Qc6 {[%emt 0:02:50]} 25. Nd2 {[%emt 0:06:12]} Kb8 {[%emt 0:02:20]} 26. Rc4 {[%emt 0:04:00]} Qa6 {[%emt 0:00:03]} 27. Qf3 {[%emt 0:01:52]} Bb4 {[%emt 0:00:43]} 28. Rxb4 {[%emt 0:00:21]} Nxb4 {[%emt 0:00:09]} 29. Bc5 {[%emt 0:00:06]} Nd5 {[%emt 0:03:48]} 30. c4 {[%emt 0:01:35]} Nb6 {[%emt 0:01:32]} 31. Rb1 {[%emt 0:01:48]} Rd8 {[%emt 0:00:49]} 32. Bd6+ {[%emt 0:00:49]} Ka8 {[%emt 0:00:01]} 33. Qxf7 {[%emt 0:00:47]} Qxa4 {[%emt 0:00:39]} 34. c5 {[%emt 0:01:40]} Qd7 {[%emt 0:00:41]} 35. Qf3 {[%emt 0:00:13]} Nc8 {[%emt 0:00:45]} 36. c6 {[%emt 0:00:21]} 1-0

[Event "IX Iberoamericano Championship 2023"]
[Site "Panama City"]
[Date "2023.11.27"]
[Round "2.5"]
[White "Villalba, Marcelo"]
[Black "Almeida Quintana, Omar"]
[Result "0-1"]
[ECO "B04"]
[WhiteElo "2241"]
[BlackElo "2509"]
[Annotator "RC"]
[PlyCount "64"]
[EventDate "2023.11.27"]
[EventType "swiss"]
[EventCountry "PAN"]
[SourceTitle "playchess.com"]
[Source "ChessBase"]
[SourceQuality "1"]
[TimeControl "5400+30"]

1. e4 {[%emt 0:07:29]} Nf6 {[%emt 0:00:53]} 2. e5 {[%emt 0:01:32]} Nd5 {[%emt 0:00:07]} 3. d4 {[%emt 0:00:31]} d6 {[%emt 0:00:05]} 4. Nf3 {[%emt 0:01:22]} g6 {[%emt 0:02:20]} 5. Bc4 {[%emt 0:03:48]} c6 {[%emt 0:00:01]} 6. O-O {[%emt 0:02:32]} Bg7 {[%emt 0:00:08]} 7. Re1 {[%emt 0:03:05]} O-O {[%emt 0:00:41]} 8. Qe2 {[%emt 0:11:16]} Bg4 {[%emt 0:05:41]} 9. h3 {[%emt 0:05:22]} Bxf3 {[%emt 0:00:45]} 10. Qxf3 {[%emt 0:00:02]} dxe5 {[%emt 0:00:06]} 11. dxe5 {[%emt 0:03:12]} e6 {[%emt 0:00:58]} 12. Bf1 {[%emt 0:19:45]} Nd7 {[%emt 0:00:12]} 13. c4 {[%emt 0:00:18]} Nb4 {[%emt 0:04:19]} 14. Qc3 {[%emt 0:13:14]} c5 {[%emt 0:00:03]} 15. Nd2 {[%emt 0:04:57]} h6 {[%emt 0:07:34]} 16. Nf3 {[%emt 0:01:49]} g5 {[%emt 0:00:09]} 17. b3 {[%emt 0:04:53]} f5 {[%emt 0:04:35]} 18. Bb2 {[%emt 0:02:09]} g4 {[%emt 0:04:39]} 19. Nh2 {[%emt 0:03:46]} Qg5 {[%emt 0:04:26]} 20. Rad1 {[%emt 0:02:35]} Rf7 {[%emt 0:00:59]} 21. a3 {[%emt 0:03:23]} Nc6 {[%emt 0:00:05]} 22. Qg3 {[%emt 0:01:36]} gxh3 {[%emt 0:00:12]} 23. Qxh3 {[%emt 0:01:42]} Nf8 {[%emt 0:03:04]} 24. f4 {[%emt 0:01:01]} Qe7 {[%emt 0:01:07]} 25. Kh1 {[%emt 0:00:50]} Ng6 {[%emt 0:00:51]} 26. Qe3 {[%emt 0:00:39]} h5 {[%emt 0:05:22]} 27. Be2 {[%emt 0:00:15]} Bh6 {[%emt 0:00:04]} 28. Rf1 {[%emt 0:00:32]} h4 {[%emt 0:01:03]} 29. Rd6 {[%emt 0:00:52]} Rg7 {[%emt 0:00:20]} 30. Bh5 {[%emt 0:00:28]} Nxf4 {[%emt 0:00:30]} 31. Rxf4 {[%emt 0:00:31]} Qg5 {[%emt 0:00:04]} 32. Ng4 {[%emt 0:00:33]} fxg4 {[%emt 0:00:18]} 0-1

[Event "IX Iberoamericano Championship 2023"]
[Site "Panama City"]
[Date "2023.11.27"]
[Round "2.6"]
[White "Berdayes Ason, Dylan Isidro"]
[Black "Palma Villanueva, Miguel Ta"]
[Result "1-0"]
[ECO "C41"]
[WhiteElo "2507"]
[BlackElo "2286"]
[Annotator "RC"]
[PlyCount "95"]
[EventDate "2023.11.27"]
[EventType "swiss"]
[EventCountry "PAN"]
[SourceTitle "playchess.com"]
[Source "ChessBase"]
[SourceQuality "1"]
[TimeControl "5400+30"]

1. e4 {[%emt 0:00:30]} d6 {[%emt 0:00:30]} 2. Nf3 {[%emt 0:00:30]} Nd7 {[%emt 0:00:30]} 3. d4 {[%emt 0:01:19]} e5 {[%emt 0:00:01]} 4. Bc4 {[%emt 0:00:18]} Be7 {[%emt 0:00:40]} 5. dxe5 {[%emt 0:01:14]} Nxe5 {[%emt 0:00:16]} 6. Nxe5 {[%emt 0:00:34]} dxe5 {[%emt 0:00:04]} 7. Qh5 {[%emt 0:00:33]} g6 {[%emt 0:02:23]} 8. Qxe5 {[%emt 0:00:30]} Nf6 {[%emt 0:00:30]} 9. Bh6 {[%emt 0:00:30]} Qd6 10. Qxd6 {[%emt 0:05:08]} cxd6 {[%emt 0:01:12]} 11. Nc3 {[%emt 0:01:03]} Be6 {[%emt 0:00:38]} 12. Bb5+ {[%emt 0:01:34]} Kd8 {[%emt 0:00:23]} 13. Bf4 {[%emt 0:03:36]} Rc8 {[%emt 0:07:01]} 14. f3 {[%emt 0:01:50]} a6 {[%emt 0:02:41]} 15. Ba4 {[%emt 0:02:33]} b5 {[%emt 0:11:42]} 16. Bb3 {[%emt 0:00:02]} b4 {[%emt 0:09:51]} 17. Ne2 {[%emt 0:00:06]} Bxb3 {[%emt 0:00:24]} 18. cxb3 {[%emt 0:02:31]} Kd7 {[%emt 0:03:04]} 19. Kd2 {[%emt 0:04:12]} d5 {[%emt 0:11:56]} 20. e5 {[%emt 0:00:33]} Nh5 {[%emt 0:00:05]} 21. Be3 {[%emt 0:05:04]} f6 {[%emt 0:10:58]} 22. Bd4 {[%emt 0:02:13]} fxe5 {[%emt 0:01:30]} 23. Bxe5 {[%emt 0:00:03]} Rhe8 {[%emt 0:00:06]} 24. Kd3 {[%emt 0:12:29]} Bg5 {[%emt 0:03:54]} 25. f4 {[%emt 0:13:11]} Bf6 {[%emt 0:03:46]} 26. Bxf6 {[%emt 0:06:25]} Nxf6 {[%emt 0:00:05]} 27. Rhc1 {[%emt 0:00:19]} Rxc1 {[%emt 0:07:51]} 28. Rxc1 {[%emt 0:00:02]} Ng4 {[%emt 0:00:05]} 29. Kd2 {[%emt 0:08:13]} Kd6 {[%emt 0:01:38]} 30. h3 {[%emt 0:04:43]} Nf6 {[%emt 0:05:03]} 31. Nd4 {[%emt 0:01:07]} Ne4+ {[%emt 0:00:30]} 32. Ke3 {[%emt 0:00:12]} Nc5+ {[%emt 0:00:40]} 33. Kf3 {[%emt 0:00:12]} Re4 {[%emt 0:00:07]} 34. Rd1 {[%emt 0:00:40]} a5 {[%emt 0:09:04]} 35. Nc2 {[%emt 0:00:44]} Ne6 {[%emt 0:01:13]} 36. g3 {[%emt 0:00:03]} g5 {[%emt 0:02:27]} 37. Ne3 {[%emt 0:03:11]} Nd4+ {[%emt 0:01:14]} 38. Rxd4 {[%emt 0:00:26]} Rxd4 {[%emt 0:00:01]} 39. Nf5+ {[%emt 0:00:02]} Kc5 {[%emt 0:00:10]} 40. Nxd4 {[%emt 0:00:08]} Kxd4 {[%emt 0:00:01]} 41. f5 {[%emt 0:00:20]} Ke5 {[%emt 0:01:33]} 42. g4 {[%emt 0:00:14]} h5 {[%emt 0:00:05]} 43. Ke3 {[%emt 0:02:11]} h4 {[%emt 0:05:08]} 44. Kd3 {[%emt 0:00:21]} d4 {[%emt 0:00:13]} 45. a3 {[%emt 0:00:11]} Kd5 {[%emt 0:00:17]} 46. f6 {[%emt 0:00:39]} Ke6 {[%emt 0:00:05]} 47. Kxd4 {[%emt 0:00:02]} Kxf6 {[%emt 0:00:05]} 48. Ke4 {[%emt 0:21:59]} 1-0

[Event "IX Iberoamericano Championship 2023"]
[Site "Panama City"]
[Date "2023.11.27"]
[Round "2.7"]
[White "Rios Parra, Alejandro"]
[Black "Cuenca Jimenez, Jose Fernando"]
[Result "0-1"]
[ECO "C95"]
[WhiteElo "2185"]
[BlackElo "2505"]
[Annotator "RC"]
[PlyCount "168"]
[EventDate "2023.11.27"]
[EventType "swiss"]
[EventCountry "PAN"]
[SourceTitle "playchess.com"]
[Source "ChessBase"]
[SourceQuality "1"]
[TimeControl "5400+30"]

1. e4 {[%emt 0:01:11]} e5 {[%emt 0:00:25]} 2. Nf3 {[%emt 0:00:17]} Nc6 {[%emt 0:00:12]} 3. Bb5 {[%emt 0:00:15]} a6 {[%emt 0:00:12]} 4. Ba4 {[%emt 0:00:04]} Nf6 {[%emt 0:00:22]} 5. O-O {[%emt 0:00:51]} Be7 {[%emt 0:01:04]} 6. Re1 {[%emt 0:00:12]} b5 {[%emt 0:00:44]} 7. Bb3 {[%emt 0:00:03]} d6 {[%emt 0:00:33]} 8. c3 {[%emt 0:00:05]} O-O {[%emt 0:00:21]} 9. h3 {[%emt 0:00:03]} Nb8 {[%emt 0:00:29]} 10. d4 {[%emt 0:00:29]} Nbd7 {[%emt 0:00:10]} 11. Nbd2 {[%emt 0:00:40]} Bb7 {[%emt 0:00:47]} 12. Bc2 {[%emt 0:02:16]} c5 {[%emt 0:00:36]} 13. d5 {[%emt 0:06:11]} c4 {[%emt 0:00:15]} 14. Nf1 {[%emt 0:00:43]} Qc7 {[%emt 0:00:12]} 15. Ng3 {[%emt 0:00:08]} g6 {[%emt 0:00:14]} 16. Nh2 {[%emt 0:07:09]} a5 {[%emt 0:02:45]} 17. Kh1 {[%emt 0:05:11]} b4 {[%emt 1:29:39]} 18. f4 {[%emt 0:01:03]} exf4 {[%emt 0:00:00]} 19. Bxf4 {[%emt 0:00:03]} Ne5 {[%emt 0:00:00]} 20. Bxe5 {[%emt 0:14:51]} dxe5 {[%emt 0:00:00]} 21. Rf1 {[%emt 0:02:46]} Ne8 {[%emt 0:00:00]} 22. Qd2 {[%emt 0:02:32]} Qd8 {[%emt 0:00:00]} 23. Nf3 {[%emt 0:00:39]} f6 {[%emt 0:00:00]} 24. Nh2 {[%emt 0:05:10]} Nd6 {[%emt 0:00:00]} 25. Rf2 {[%emt 0:07:26]} Bc8 {[%emt 0:00:00]} 26. Raf1 {[%emt 0:00:18]} Rb8 {[%emt 0:00:00]} 27. Ng4 {[%emt 0:14:54]} bxc3 {[%emt 0:00:00]} 28. Qxc3 {[%emt 0:00:21]} h5 {[%emt 0:00:00]} 29. Ne3 {[%emt 0:02:21]} Qb6 {[%emt 0:00:00]} 30. Nd1 {[%emt 0:04:31]} Rf7 {[%emt 0:00:00]} 31. Ne2 {[%emt 0:02:58]} Bd7 {[%emt 0:00:00]} 32. Qg3 {[%emt 0:01:38]} Rg7 {[%emt 0:00:00]} 33. Nec3 {[%emt 0:02:00]} Rf8 {[%emt 0:00:00]} 34. Rf3 {[%emt 0:02:58]} Qd4 {[%emt 0:00:00]} 35. Qe1 {[%emt 0:03:02]} Bd8 {[%emt 0:00:00]} 36. Ne2 {[%emt 0:02:17]} Qa7 {[%emt 0:00:00]} 37. Nec3 {[%emt 0:00:11]} Rff7 {[%emt 0:05:10]} 38. Ne3 {[%emt 0:01:19]} Qd4 {[%emt 0:01:03]} 39. Qc1 {[%emt 0:03:21]} Rf8 {[%emt 0:00:39]} 40. Ne2 {[%emt 0:01:21]} Qb6 {[%emt 0:00:34]} 41. Nc3 {[%emt 0:00:15]} Qa7 {[%emt 0:01:34]} 42. Qe1 {[%emt 0:01:51]} Bc8 {[%emt 0:00:19]} 43. Qc1 {[%emt 0:00:04]} Bb6 {[%emt 0:00:36]} 44. Ned1 {[%emt 0:00:15]} Qe7 {[%emt 0:00:36]} 45. Ne3 {[%emt 0:00:40]} Rh7 {[%emt 0:01:27]} 46. Bb1 {[%emt 0:00:20]} Ba7 {[%emt 0:00:41]} 47. Ncd1 {[%emt 0:01:30]} Ba6 {[%emt 0:00:21]} 48. Nc3 {[%emt 0:00:04]} Rg7 {[%emt 0:00:49]} 49. Qd1 {[%emt 0:01:02]} Bd4 {[%emt 0:00:29]} 50. Qa4 {[%emt 0:00:36]} Qc7 {[%emt 0:00:47]} 51. Ned1 {[%emt 0:00:41]} Rgf7 {[%emt 0:00:43]} 52. Ne3 {[%emt 0:02:58]} Qb6 {[%emt 0:00:18]} 53. Ned1 {[%emt 0:00:04]} Kg7 {[%emt 0:00:15]} 54. Qc2 {[%emt 0:00:27]} Bc8 {[%emt 0:00:20]} 55. Qd2 {[%emt 0:00:22]} Kh7 {[%emt 0:01:42]} 56. Qe2 {[%emt 0:00:59]} Qc7 {[%emt 0:00:31]} 57. Ne3 {[%emt 0:00:38]} Kh8 {[%emt 0:00:05]} 58. Rg3 {[%emt 0:00:30]} Rg7 {[%emt 0:00:23]} 59. Rgf3 {[%emt 0:00:02]} Rgf7 {[%emt 0:00:29]} 60. Rg3 {[%emt 0:00:03]} Kh7 {[%emt 0:00:19]} 61. Rgf3 {[%emt 0:00:08]} Qc5 {[%emt 0:01:17]} 62. Kh2 {[%emt 0:00:21]} h4 {[%emt 0:00:26]} 63. Qe1 {[%emt 0:00:21]} g5 {[%emt 0:00:19]} 64. Qe2 {[%emt 0:00:22]} Kg7 {[%emt 0:00:18]} 65. Ncd1 {[%emt 0:00:57]} Bd7 {[%emt 0:00:37]} 66. Nc3 {[%emt 0:01:16]} Qb4 {[%emt 0:00:24]} 67. g4 {[%emt 0:01:27]} hxg3+ {[%emt 0:00:18]} 68. Rxg3 {[%emt 0:00:05]} Rh8 {[%emt 0:00:12]} 69. Kg2 {[%emt 0:00:54]} Rh4 {[%emt 0:00:53]} 70. Ned1 {[%emt 0:01:33]} Rf8 {[%emt 0:00:32]} 71. Qd2 {[%emt 0:00:03]} Nf7 {[%emt 0:00:59]} 72. d6 {[%emt 0:00:26]} Be6 {[%emt 0:00:30]} 73. d7 {[%emt 0:00:26]} Rh6 {[%emt 0:00:31]} 74. Qe2 {[%emt 0:00:36]} Qd6 {[%emt 0:00:18]} 75. Ne3 {[%emt 0:00:17]} Qxd7 {[%emt 0:00:08]} 76. Nf5+ {[%emt 0:00:39]} Bxf5 {[%emt 0:00:03]} 77. Rxf5 {[%emt 0:00:07]} Nd6 {[%emt 0:00:57]} 78. Rff3 {[%emt 0:00:08]} Bxc3 {[%emt 0:00:25]} 79. Rxc3 {[%emt 0:00:25]} Qc6 {[%emt 0:00:38]} 80. b3 {[%emt 0:00:05]} Rh4 {[%emt 0:00:16]} 81. Qe3 {[%emt 0:00:35]} Nf5 {[%emt 0:00:54]} 82. Rxg5+ {[%emt 0:00:59]} fxg5 {[%emt 0:00:12]} 83. Qxg5+ {[%emt 0:00:11]} Kh8 {[%emt 0:00:34]} 84. Rxc4 {[%emt 0:00:14]} Qh6 {[%emt 0:00:57]} 0-1

[Event "IX Iberoamericano Championship 2023"]
[Site "Panama City"]
[Date "2023.11.27"]
[Round "2.8"]
[White "Miranda Mesa, Elier"]
[Black "Hernandez Montes, Jhon Sebastian"]
[Result "1-0"]
[ECO "B07"]
[WhiteElo "2490"]
[BlackElo "2280"]
[Annotator "RC"]
[PlyCount "71"]
[EventDate "2023.11.27"]
[EventType "swiss"]
[EventCountry "PAN"]
[SourceTitle "playchess.com"]
[Source "ChessBase"]
[SourceQuality "1"]
[TimeControl "5400+30"]

1. e4 {[%emt 0:02:31]} d6 {[%emt 0:00:07]} 2. d4 {[%emt 0:00:07]} Nf6 {[%emt 0:00:06]} 3. Nc3 {[%emt 0:00:04]} g6 {[%emt 0:00:34]} 4. Be2 {[%emt 0:00:05]} Bg7 {[%emt 0:03:18]} 5. h4 {[%emt 0:00:05]} c5 {[%emt 0:03:25]} 6. dxc5 {[%emt 0:00:18]} Qa5 {[%emt 0:02:36]} 7. Bd2 {[%emt 0:00:05]} Qxc5 {[%emt 0:01:21]} 8. h5 {[%emt 0:00:05]} gxh5 {[%emt 0:06:45]} 9. Nh3 {[%emt 0:00:30]} Bg4 {[%emt 0:18:36]} 10. Nf4 {[%emt 0:06:07]} Nc6 {[%emt 0:10:26]} 11. f3 {[%emt 0:00:19]} Be6 {[%emt 0:04:55]} 12. Nd3 {[%emt 0:00:46]} Qb6 {[%emt 0:05:04]} 13. a4 {[%emt 0:00:08]} a6 {[%emt 0:08:56]} 14. a5 {[%emt 0:04:02]} Qc7 {[%emt 0:01:28]} 15. Nf4 {[%emt 0:04:46]} Rg8 {[%emt 0:04:09]} 16. Kf1 {[%emt 0:34:20]} Bh8 {[%emt 0:03:39]} 17. Ncd5 {[%emt 0:02:43]} Bxd5 {[%emt 0:01:33]} 18. exd5 {[%emt 0:00:07]} Ne5 {[%emt 0:00:42]} 19. c4 {[%emt 0:00:54]} Rc8 {[%emt 0:02:31]} 20. Qa4+ {[%emt 0:03:07]} Kf8 {[%emt 0:02:04]} 21. Rc1 {[%emt 0:01:04]} Ng6 {[%emt 0:03:27]} 22. b4 {[%emt 0:06:16]} b5 {[%emt 0:05:18]} 23. Qb3 {[%emt 0:06:37]} Nxf4 {[%emt 0:03:17]} 24. Bxf4 {[%emt 0:00:09]} Qb7 {[%emt 0:00:17]} 25. Kf2 {[%emt 0:02:20]} bxc4 {[%emt 0:02:02]} 26. Rxc4 {[%emt 0:01:39]} Rxc4 {[%emt 0:00:47]} 27. Bxc4 {[%emt 0:01:34]} Nd7 {[%emt 0:00:02]} 28. Be3 {[%emt 0:01:17]} Ne5 {[%emt 0:01:20]} 29. Rxh5 {[%emt 0:03:32]} e6 {[%emt 0:00:55]} 30. Rxh7 {[%emt 0:05:34]} Nxc4 {[%emt 0:01:38]} 31. Qxc4 {[%emt 0:00:05]} exd5 {[%emt 0:00:56]} 32. Qh4 {[%emt 0:02:32]} Qc7 {[%emt 0:00:34]} 33. Qh6+ {[%emt 0:04:32]} Bg7 {[%emt 0:00:40]} 34. Rxg7 {[%emt 0:00:29]} Qc2+ {[%emt 0:00:51]} 35. Kg1 {[%emt 0:00:10]} Rxg7 {[%emt 0:02:51]} 36. Qh8+ {[%emt 0:09:31]} 1-0